Cogmind - Beta 12 @@@ ROGUE MODE // 2023.04.26 @ 19:20:50 Player: Mr Goldstein Result: Destroyed by H-77 Assassin with Coil Gun Performance ------------- Evolutions (6) 3000 Regions Visited (11) 2200 Robots Destroyed (15) 75 Value Destroyed (200) 200 Prototype IDs (1) 20 Alien Tech Used (0) 0 Bonus (1200) 1200 TOTAL SCORE: 6695 Bonus ------- Pacifist 200 Entered DSFs 1000 Cogmind --------- Core Integrity 0/1150 Matter 22/300 Energy 98/100 System Corruption 8% Temperature Cool (0) Movement Core (50) Location -4/Factory Parts ------- > --- POWER (2) -------- (None) > --- PROPULSION (7) --- (None) > --- UTILITY (8) ------ Enhanced Optical Array Transport Network Coupler Hacking Suite Improved Hacking Suite System Shield > --- WEAPON (2) ------- (None) > --- INVENTORY (5) ---- Light Angular Momentum Engine Advanced Heat Sink Advanced Signal Interpreter Force Lance Peak State ------------ > --- POWER ------------ (None) > --- PROPULSION ------- Cesium-ion Thruster Nuclear Pulse Array > --- UTILITY ---------- Enhanced Optical Array Transport Network Coupler Hacking Suite Hacking Suite Improved Hacking Suite System Shield System Shield Improved System Shield > --- WEAPON ----------- (None) > --- INVENTORY -------- Light Angular Momentum Engine Advanced Heat Sink Grenade Launcher [Rating: 44] Favorites ----------- Power Light Ion Engine Engine Light Ion Engine Power Core Micro Nuclear Core Reactor Zero-point Reactor Propulsion Cesium-ion Thruster Treads Light Treads Flight Unit Cesium-ion Thruster Utility System Shield Device Advanced Phase Shifter Processor Transport Network Coupler Hackware System Shield Protection Heavy Armor Plating Weapon Katana Launcher Grenade Launcher Slashing Weapon Katana Build | -11 -10 -9 -8 -7 -7 -6 -5 -5 -4 -4 -4 ------- Run | Jun Mat Mat Mat Fac DSF Fac Fac DSF Fac Was Fac Slots Evolved 12 | . . 2 2 2 . 2 2 . 2 . . Power 1 | . . . . 1 . . . . . . . Propulsion 5 | . . 1 1 1 . 1 1 . . . . Utility 6 | . . 1 1 . . 1 1 . 2 . . Weapon . | . . . . . . . . . . . . Parts Attached 36 | 2 . 7 8 . 5 5 2 . 5 2 . Power 5 | . . 1 . . 3 . . . . 1 . Engine 1 | . . 1 . . . . . . . . . Core 3 | . . . . . 3 . . . . . . Reactor 1 | . . . . . . . . . . 1 . Propulsion 12 | 2 . 3 3 . . 1 1 . 2 . . Treads 2 | 2 . . . . . . . . . . . Leg . | . . . . . . . . . . . . Wheel . | . . . . . . . . . . . . Hover . | . . . . . . . . . . . . Flight 10 | . . 3 3 . . 1 1 . 2 . . Utility 12 | . . 1 2 . 2 3 1 . 2 1 . Device 1 | . . . . . . . . . . 1 . Storage . | . . . . . . . . . . . . Processor 3 | . . . 1 . . 2 . . . . . Hackware 7 | . . . 1 . 2 1 1 . 2 . . Protection 1 | . . 1 . . . . . . . . . Artifact . | . . . . . . . . . . . . Weapon 7 | . . 2 3 . . 1 . . 1 . . Energy Gun . | . . . . . . . . . . . . Energy Cannon . | . . . . . . . . . . . . Ballistic Gun . | . . . . . . . . . . . . Ballistic Cannon . | . . . . . . . . . . . . Launcher 2 | . . . 1 . . . . . 1 . . Special Weapon . | . . . . . . . . . . . . Impact Weapon . | . . . . . . . . . . . . Slashing Weapon 5 | . . 2 2 . . 1 . . . . . Piercing Weapon . | . . . . . . . . . . . . Special Melee Weapon . | . . . . . . . . . . . . Unidentified Prototypes 1 | . . . . . . . . . . 1 . Parts Lost 16 | . . . 3 . . 4 . 1 6 . 2 Power 1 | . . . 1 . . . . . . . . Propulsion 9 | . . . 1 . . 4 . . 4 . . Utility 3 | . . . . . . . . . 1 . 2 Weapon 3 | . . . 1 . . . . 1 1 . . Highest Loss Streak 6 | . . . 3 . . 4 . 1 6 . 2 To Critical Strikes . | . . . . . . . . . . . . Average Slot Usage (%) 46 | . 28 46 60 . 72 47 46 49 48 37 35 Engine 1 | . . 6 5 . . . . . . . . Treads 2 | . 28 10 . . . . . . . . . Flight 10 | . . 13 35 . 30 7 10 11 4 . . Processor 7 | . . . 4 . 7 13 11 11 10 10 10 Hackware 16 | . . . 3 . 23 20 17 23 31 26 25 Slashing Weapon 6 | . . 16 12 . 7 6 5 2 . . . Naked Turns . | . . . . . . . . . . . . Heaviest Build 14 | . . 7 8 2 14 14 4 4 3 . . Greatest Support 23 | 20 3 12 17 14 14 23 18 18 18 3 3 Greatest Overweight (x) 2 | . . 2 . . . . . . . . . Average Overweight (x) . | . . . . . . . . . . . . Largest Inventory Capacity 5 | 5 5 5 5 5 5 5 5 5 5 5 5 Average Capacity 5 | 5 5 5 5 5 5 5 5 5 5 5 5 Most Carried 5 | . . 2 5 4 5 5 5 4 3 3 5 Average Carried 3 | . . 1 3 4 4 4 4 4 2 2 4 Final Capacity 5 | 5 5 5 5 5 5 5 5 5 5 5 5 Final Carried 5 | . . 2 4 4 5 5 4 4 2 3 4 Class Distribution -------------------- 66% | Hacker-Mutant 18% | Mutant 8% | Wizard-Mutant 5% | Sprinter Dominant Class ---------------- Mutant | -10/Materials Mutant | -9/Materials Mutant | -8/Materials Mutant | -7/Factory Mutant | -7/DSF Hacker-Mutant | -6/Factory Hacker-Mutant | -5/Factory Hacker-Mutant | -5/DSF Wizard-Mutant | -4/Factory Hacker-Mutant | -4/Waste Hacker-Mutant | -4/Factory Resources | -11 -10 -9 -8 -7 -7 -6 -5 -5 -4 -4 -4 ----------- Run | Jun Mat Mat Mat Fac DSF Fac Fac DSF Fac Was Fac Matter Collected 278 | 99 . 77 60 . . 24 . . 6 . 12 Remotely . | . . . . . . . . . . . . Salvage Created 328 | . . 77 72 . . 136 . . 43 . . Parts 25 | . . 6 9 . . 6 . . 4 . . Haulers Intercepted 2 | . . . 1 . . 1 . . . . . Recyclers Shooed 1 | 1 . . . . . . . . . . . Parts Field Recycled . | . . . . . . . . . . . . Retrieved Matter . | . . . . . . . . . . . . Parts Self-Destructed . | . . . . . . . . . . . . Prevented . | . . . . . . . . . . . . Kills | -11 -10 -9 -8 -7 -7 -6 -5 -5 -4 -4 -4 ------- Run | Jun Mat Mat Mat Fac DSF Fac Fac DSF Fac Was Fac Combat Hostiles Destroyed 10 | . . 4 3 . . . . . 3 . . Melee 5 | . . 4 1 . . . . . . . . AOE 5 | . . . 2 . . . . . 3 . . Classes Destroyed 5 | . . 2 2 . . 1 . . . . . Worker 1 | . . 1 . . . . . . . . . Tunneler 1 | . . . 1 . . . . . . . . Hauler 2 | . . . 1 . . 1 . . . . . Operator 1 | . . . . . . 1 . . . . . Swarmer 10 | . . 4 3 . . . . . 3 . . Best Kill Streak 5 | . . 5 4 . . 1 . . 3 . . Combat Bots Only 4 | . . 4 3 . . . . . 3 . . Max Kills in Single Turn 2 | . . 1 1 . . 1 . . 2 . . Gunslinging . | . . . . . . . . . . . . Exploded 2 | . . . 1 . . . . . 2 . . Melee 1 | . . 1 1 . . . . . . . . Uniques/NPCs Destroyed . | . . . . . . . . . . . . Combat | -11 -10 -9 -8 -7 -7 -6 -5 -5 -4 -4 -4 -------- Run | Jun Mat Mat Mat Fac DSF Fac Fac DSF Fac Was Fac Damage Taken 2458 | 1 80 313 174 . 81 264 . 145 722 . 678 Core 1560 | . 28 111 33 . 52 162 . 22 520 . 632 Absorbed by Shields . | . . . . . . . . . . . . Core Remaining (%) 89 | 100 88 72 94 . 92 80 . 97 . . . Volleys Fired 10 | . . . 5 . . . . . 5 . . Largest 1 | . . . 1 . . . . . 1 . . Hottest 30 | . . . 30 . . . . . 30 . . Shots Fired 10 | . . . 5 . . . . . 5 . . Gun . | . . . . . . . . . . . . Cannon . | . . . . . . . . . . . . Launcher 10 | . . . 5 . . . . . 5 . . Special . | . . . . . . . . . . . . Kinetic . | . . . . . . . . . . . . Thermal . | . . . . . . . . . . . . Explosive 10 | . . . 5 . . . . . 5 . . Electromagnetic . | . . . . . . . . . . . . Robot Hit Streak 2 | . . . 2 . . . . . 1 . . Robot Miss Streak 3 | . . . 3 . . . . . 2 . . Penetration Max . | . . . . . . . . . . . . Secondary Targets . | . . . . . . . . . . . . Shots Hit Robots 23 | . . 10 8 . . 4 . . 1 . . Core Hits 16 | . . 4 5 . . 2 . . 5 . . Critical Kills . | . . . . . . . . . . . . Critical Parts Destroyed . | . . . . . . . . . . . . Critical Strikes . | . . . . . . . . . . . . Melee Attacks 37 | . . 17 7 . . 12 1 . . . . Impact . | . . . . . . . . . . . . Slashing 37 | . . 17 7 . . 12 1 . . . . Piercing . | . . . . . . . . . . . . Sneak Attacks 4 | . . 1 2 . . 1 . . . . . Combat Hostiles . | . . . . . . . . . . . . Follow-up Attacks 2 | . . 2 . . . . . . . . . Damage Inflicted 1333 | 3 . 362 522 . . 226 . . 220 . . Guns . | . . . . . . . . . . . . Cannons . | . . . . . . . . . . . . Explosions 481 | . . . 261 . . . . . 220 . . Melee 831 | . . 344 261 . . 226 . . . . . Ramming 21 | 3 . 18 . . . . . . . . . Kinetic . | . . . . . . . . . . . . Thermal . | . . . . . . . . . . . . Explosive 481 | . . . 261 . . . . . 220 . . Electromagnetic . | . . . . . . . . . . . . Impact . | . . . . . . . . . . . . Slashing 831 | . . 344 261 . . 226 . . . . . Piercing . | . . . . . . . . . . . . Highest Corruption 8 | . . . . . . 1 . . . 8 8 Average Corruption 4 | . . . . . . 1 . . . 8 8 Corruption Purged . | . . . . . . . . . . . . Corruption Blocked . | . . . . . . . . . . . . Effects 7 | . . . . . . 2 . . . 1 4 Message Errors 2 | . . . . . . 1 . . . . 1 Heat Flow Errors 1 | . . . . . . . . . . . 1 Energy Discharges 1 | . . . . . . 1 . . . . . Data Loss (minor) 2 | . . . . . . . . . . . 2 Data Loss (major) 1 | . . . . . . . . . . 1 . Overload Shots . | . . . . . . . . . . . . Overflow Damage 138 | . . 35 95 . . 8 . . . . . Projectiles . | . . . . . . . . . . . . Explosions . | . . . . . . . . . . . . Melee 138 | . . 35 95 . . 8 . . . . . Knockbacks . | . . . . . . . . . . . . Impact . | . . . . . . . . . . . . Kinetic . | . . . . . . . . . . . . Secondary . | . . . . . . . . . . . . Self-Inflicted Damage 9 | 1 . 8 . . . . . . . . . Shots . | . . . . . . . . . . . . Rammed 6 | 1 . 4 . . . . . . 1 . . Targets Rammed 6 | 1 . 4 . . . . . . 1 . . Kicked . | . . . . . . . . . . . . Crushed . | . . . . . . . . . . . . Highest Temperature 119 | . . 10 . . . 12 . . . . 119 Average Temperature 25 | . . 10 . . . 7 . . . . 60 Received Heat Transfer 274 | . 45 45 9 . 6 9 . . . . 160 Siege Activations . | . . . . . . . . . . . . Robots Corrupted . | . . . . . . . . . . . . Combat Hostiles . | . . . . . . . . . . . . Parts Fried . | . . . . . . . . . . . . Impact Corruptions . | . . . . . . . . . . . . Robots Melted . | . . . . . . . . . . . . Combat Hostiles . | . . . . . . . . . . . . Parts Melted . | . . . . . . . . . . . . Heat Transferred . | . . . . . . . . . . . . Parts Sabotaged . | . . . . . . . . . . . . Parts Stolen . | . . . . . . . . . . . . Parts Stripped . | . . . . . . . . . . . . Power Chain Reactions . | . . . . . . . . . . . . Missiles Intercepted . | . . . . . . . . . . . . Alert | -11 -10 -9 -8 -7 -7 -6 -5 -5 -4 -4 -4 ------- Run | Jun Mat Mat Mat Fac DSF Fac Fac DSF Fac Was Fac Peak Influence 225 | . 15 205 225 102 71 219 154 107 162 72 127 Initial 107 | . . 5 86 102 71 37 107 107 50 42 46 Average 89 | . 2 85 177 102 71 77 120 102 100 61 86 Maximum Alert Level 1 | . . 1 1 . . 1 . . . . . Low Security (%) 93 | 100 100 98 42 100 100 95 100 100 100 100 100 Level 1 6 | . . 1 57 . . 4 . . . . . Level 2 . | . . . . . . . . . . . . Level 3 . | . . . . . . . . . . . . Level 4 . | . . . . . . . . . . . . Level 5 . | . . . . . . . . . . . . High Security . | . . . . . . . . . . . . Max Security . | . . . . . . . . . . . . Squads Dispatched 4 | . . . . . . 1 . . 1 . 2 Investigation 2 | . . . . . . . . . . . 2 Extermination . | . . . . . . . . . . . . Reinforcement 1 | . . . . . . . . . 1 . . Assault . | . . . . . . . . . . . . Garrison 1 | . . . . . . 1 . . . . . Intercept . | . . . . . . . . . . . . Searches Triggered . | . . . . . . . . . . . . Construction Impeded . | . . . . . . . . . . . . Haulers Reinforced . | . . . . . . . . . . . . Active Scanning Responses . | . . . . . . . . . . . . Cargo Convoy Interrupts . | . . . . . . . . . . . . Stealth | -11 -10 -9 -8 -7 -7 -6 -5 -5 -4 -4 -4 --------- Run | Jun Mat Mat Mat Fac DSF Fac Fac DSF Fac Was Fac Distress Signals 3 | . . 1 1 . . . . . . . 1 Communications Jammed . | . . . . . . . . . . . . Distress Signals . | . . . . . . . . . . . . Times Spotted 65 | . 3 14 9 . 2 6 1 2 14 4 10 Peak Tracking Total 8 | . 3 7 7 . 2 2 1 2 8 4 7 Tactical Retreats 7 | . . 1 . . . 3 . . 1 . 2 Traps | -11 -10 -9 -8 -7 -7 -6 -5 -5 -4 -4 -4 ------- Run | Jun Mat Mat Mat Fac DSF Fac Fac DSF Fac Was Fac Traps Triggered 5 | . . . . . . 1 . 1 1 . 2 Indirectly . | . . . . . . . . . . . . Trap Hack Attempts . | . . . . . . . . . . . . Triggered . | . . . . . . . . . . . . Disarmed . | . . . . . . . . . . . . Reprogrammed . | . . . . . . . . . . . . Reused . | . . . . . . . . . . . . Traps Extracted . | . . . . . . . . . . . . Installed . | . . . . . . . . . . . . Triggered . | . . . . . . . . . . . . Machines | -11 -10 -9 -8 -7 -7 -6 -5 -5 -4 -4 -4 ---------- Run | Jun Mat Mat Mat Fac DSF Fac Fac DSF Fac Was Fac Machines Disabled . | . . . . . . . . . . . . Max in Single Turn . | . . . . . . . . . . . . Garrison Access 1 | . . . . . . . . . 1 . . Machines Repaired . | . . . . . . . . . . . . Machines Sabotaged . | . . . . . . . . . . . . Overloaded Fab Kills . | . . . . . . . . . . . . Hacking | -11 -10 -9 -8 -7 -7 -6 -5 -5 -4 -4 -4 --------- Run | Jun Mat Mat Mat Fac DSF Fac Fac DSF Fac Was Fac Machines Accessed 13 | . . . . 1 . 6 1 . 2 . 3 Terminals 12 | . . . . 1 . 6 1 . 1 . 3 Fabricators . | . . . . . . . . . . . . Repair Stations . | . . . . . . . . . . . . Recycling Units . | . . . . . . . . . . . . Scanalyzers . | . . . . . . . . . . . . Garrison Access 1 | . . . . . . . . . 1 . . Total Hacks 35 | . . . . 2 . 19 1 . 4 . 9 Successful 15 | . . . . 1 . 7 1 . 2 . 4 Failed 20 | . . . . 1 . 12 . . 2 . 5 Catastrophic 5 | . . . . . . 4 . . . . 1 Database Lockouts . | . . . . . . . . . . . . Manual 16 | . . . . . . 12 . . 2 . 2 Terminals 33 | . . . . 2 . 19 1 . 2 . 9 Fabricators . | . . . . . . . . . . . . Repair Stations . | . . . . . . . . . . . . Recycling Units . | . . . . . . . . . . . . Scanalyzers . | . . . . . . . . . . . . Garrison Access 2 | . . . . . . . . . 2 . . Terminal Hacks 11 | . . . . 1 . 4 1 . 1 . 4 Robot Analysis 3 | . . . . . . 1 . . . . 2 Open DSF 2 | . . . . 1 . . 1 . . . . Level Access Points 2 | . . . . . . . . . 1 . 1 Branch Access Points 1 | . . . . . . 1 . . . . . Registered Components 1 | . . . . . . 1 . . . . . Zone Layout 2 | . . . . . . 1 . . . . 1 Fabricator Hacks . | . . . . . . . . . . . . Repair Station Hacks . | . . . . . . . . . . . . Recycling Unit Hacks . | . . . . . . . . . . . . Scanalyzer . | . . . . . . . . . . . . Garrison Access Hacks 1 | . . . . . . . . . 1 . . Seal Access 1 | . . . . . . . . . 1 . . Unauthorized Hacks 3 | . . . . . . 3 . . . . . Terminals 3 | . . . . . . 3 . . . . . Track 1 | . . . . . . 1 . . . . . Botnet 2 | . . . . . . 2 . . . . . Fabricators . | . . . . . . . . . . . . Repair Stations . | . . . . . . . . . . . . Recycling Units . | . . . . . . . . . . . . Scanalyzers . | . . . . . . . . . . . . Garrison Access . | . . . . . . . . . . . . Data Cores Recovered 1 | . . . . . . 1 . . . . . Used . | . . . . . . . . . . . . Hacking Detections 11 | . . . . 1 . 6 1 . . . 3 Full Trace Events 1 | . . . . . . . . . . . 1 Feedback Events . | . . . . . . . . . . . . Feedback Blocked . | . . . . . . . . . . . . Robot Schematics Acquired . | . . . . . . . . . . . . Robots Built . | . . . . . . . . . . . . Authchips . | . . . . . . . . . . . . Time . | . . . . . . . . . . . . Total Robot Build Rating . | . . . . . . . . . . . . Part Schematics Acquired . | . . . . . . . . . . . . Parts Built . | . . . . . . . . . . . . Authchips . | . . . . . . . . . . . . Time . | . . . . . . . . . . . . Total Part Build Rating . | . . . . . . . . . . . . Parts Repaired . | . . . . . . . . . . . . Time . | . . . . . . . . . . . . Parts Recycled . | . . . . . . . . . . . . Recycled Matter . | . . . . . . . . . . . . Retrieved Matter . | . . . . . . . . . . . . Retrieved Components . | . . . . . . . . . . . . Parts Scanalyzed . | . . . . . . . . . . . . Part Schematics Acquired . | . . . . . . . . . . . . Parts Damaged . | . . . . . . . . . . . . Bothacking | -11 -10 -9 -8 -7 -7 -6 -5 -5 -4 -4 -4 ------------ Run | Jun Mat Mat Mat Fac DSF Fac Fac DSF Fac Was Fac Used RIF Installer . | . . . . . . . . . . . . Robots Hacked . | . . . . . . . . . . . . Non-combat . | . . . . . . . . . . . . Combat . | . . . . . . . . . . . . Robot Hacks Applied . | . . . . . . . . . . . . Relay Couplers Released . | . . . . . . . . . . . . Fabnet Peak Effective % . | . . . . . . . . . . . . Robots Rewired . | . . . . . . . . . . . . Allies Hacked . | . . . . . . . . . . . . Hacks Repelled . | . . . . . . . . . . . . Allies | -11 -10 -9 -8 -7 -7 -6 -5 -5 -4 -4 -4 -------- Run | Jun Mat Mat Mat Fac DSF Fac Fac DSF Fac Was Fac Total Allies 1 | . . . . . . . . . . 1 . Largest Group 1 | . . . . . . . . . . 1 . Highest-Rated Group 46 | . . . . . . . . . . 46 . Highest-Rated Ally 46 | . . . . . . . . . . 46 . Total Orders . | . . . . . . . . . . . . Ally Attacks 3 | . . . . . . . . . . 3 . Total Damage 113 | . . . . . . . . . . 113 . Kills . | . . . . . . . . . . . . Allies Corrupted . | . . . . . . . . . . . . Allies Melted . | . . . . . . . . . . . . Intel | -11 -10 -9 -8 -7 -7 -6 -5 -5 -4 -4 -4 ------- Run | Jun Mat Mat Mat Fac DSF Fac Fac DSF Fac Was Fac Robot Analysis Total 3 | . . . . . . 1 . . . . 2 Derelict Logs Recovered . | . . . . . . . . . . . . Drone Launches . | . . . . . . . . . . . . Drone Recoveries . | . . . . . . . . . . . . Exploration | -11 -10 -9 -8 -7 -7 -6 -5 -5 -4 -4 -4 ------------- Run | Jun Mat Mat Mat Fac DSF Fac Fac DSF Fac Was Fac Turns Passed 966 | 15 29 193 82 3 40 219 64 19 82 60 160 Spaces Moved 1967 | 18 57 340 137 9 96 498 171 56 163 107 315 Core 626 | 16 57 79 . . . . . . 52 107 315 Treads 2 | 2 . . . . . . . . . . . Legs . | . . . . . . . . . . . . Wheels . | . . . . . . . . . . . . Hover . | . . . . . . . . . . . . Flight 1339 | . . 261 137 9 96 498 171 56 111 . . Fastest Speed 24 | 50 50 32 28 29 29 24 34 34 34 50 50 Average Speed 39 | 62 50 40 28 29 29 34 34 34 39 50 50 Slowest Speed 160 | 160 50 150 32 29 29 35 35 34 50 50 50 Overloaded Moves . | . . . . . . . . . . . . Propulsion Burnouts . | . . . . . . . . . . . . Robots Hopped 9 | . . 4 . . 1 4 . . . . . Cave-ins Triggered . | . . . . . . . . . . . . Exploration Rate (%) 31 | 3 16 41 24 1 88 19 6 84 5 81 13 Regions Visited 11 Branch Regions . Pre-discovered Areas . | . . . . . . . . . . . . Known Exits Taken 2 | . . . . 1 . . 1 . . . . Unknown Exits Taken 5 | 1 1 1 1 . . 1 . . . . . Scrap Searched . | . . . . . . . . . . . . Spaces Dug 12 | . . . . . . 7 1 . 4 . . Terrain Destroyed 51 | . . . 24 . . 7 1 . 19 . . Melee 8 | . . . . . . 7 1 . . . . Projectile . | . . . . . . . . . . . . AOE 43 | . . . 24 . . . . . 19 . . Terrain Rammed . | . . . . . . . . . . . . Walls Destroyed . | . . . . . . . . . . . . Machines Disabled . | . . . . . . . . . . . . Actions | -11 -10 -9 -8 -7 -7 -6 -5 -5 -4 -4 -4 --------- Run | Jun Mat Mat Mat Fac DSF Fac Fac DSF Fac Was Fac Total 2074 | 20 56 368 163 8 105 521 173 55 175 112 318 Wait 5 | . . . 1 . . 2 . . . 2 . Move 1939 | 17 56 331 136 8 93 489 170 55 163 106 315 Hop 9 | . . 4 . . 1 4 . . . . . Pick Up 16 | . . 4 3 . 3 3 . . 1 . 2 Fast Attach 23 | 2 . 5 5 . 5 1 1 . 2 2 . Attach 10 | . . 2 2 . . 2 1 . 3 . . Detach 5 | . . . 2 . . 2 . . . 1 . Swap 3 | . . . 1 . . 2 . . . . . Drop 14 | . . 3 2 . 3 4 . . . 1 1 Fire 10 | . . . 5 . . . . . 5 . . Melee 34 | . . 15 6 . . 12 1 . . . . Ram 6 | 1 . 4 . . . . . . 1 . . Kick . | . . . . . . . . . . . . Crush . | . . . . . . . . . . . . Escape Stasis . | . . . . . . . . . . . . Rewire . | . . . . . . . . . . . . Trap . | . . . . . . . . . . . . Miscellaneous . | . . . . . . . . . . . . Route ------- -11/Junkyard -10/Materials -9/Materials (discovered 2 exits: [*Mat] / [*Min]) -8/Materials -7/Factory -7/DSF -6/Factory (discovered 3 exits: *Fac / Low x2) -5/Factory -5/DSF -4/Factory (discovered 4 exits: Res x4) -4/Waste -4/Factory (discovered 5 exits: Res x4 / [*Upp]) History --------- Turn | Location | Event 10 | -11/Junkyard | Discovered new exit (range 12) 16 | -11/Junkyard | Entered Materials 37 | -10/Materials | Discovered new exit (range 16) 45 | -10/Materials | Entered another Materials area 45 | -9/Materials | Evolved 2 slots: Propulsion x1, Utility x1 207 | -9/Materials | Discovered new exit (range 16) 234 | -9/Materials | Discovered new exit (range 12) 238 | -9/Materials | Entered another Materials area 238 | -8/Materials | Evolved 2 slots: Propulsion x1, Utility x1 318 | -8/Materials | Discovered new exit (range 9) 320 | -8/Materials | Entered Factory 320 | -7/Factory | Evolved 2 slots: Power x1, Propulsion x1 323 | -7/Factory | Identified exit to DSF 323 | -7/Factory | Entered DSF 343 | -7/DSF | Lost 3 parts (1p1n1w) 347 | -7/DSF | Additional patrols routed to DSF 354 | -7/DSF | Discovered new exit (range 15) 363 | -7/DSF | Entered Factory 363 | -6/Factory | Evolved 2 slots: Propulsion x1, Utility x1 384 | -6/Factory | Spotted B-75 Beast 403 | -6/Factory | Lost 4 parts (4n) 410 | -6/Factory | Garrison activated, responded to threat 436 | -6/Factory | Identified exit to Lower Caves 547 | -6/Factory | Build established: Hacker-Mutant 577 | -6/Factory | Discovered new exit (range 15) 582 | -6/Factory | Entered another Factory area 582 | -5/Factory | Evolved 2 slots: Propulsion x1, Utility x1 645 | -5/Factory | Identified exit to DSF 646 | -5/Factory | Entered DSF 658 | -5/DSF | Additional patrols routed to DSF 661 | -5/DSF | Discovered new exit (range 14) 665 | -5/DSF | Entered Factory 665 | -4/Factory | Evolved 2 slots: Utility x2 670 | -4/Factory | Identified exit to Research 747 | -4/Factory | Sucked down chute 747 | -4/Factory | Entered Waste 748 | -4/Waste | Met a frightened Derelict 749 | -4/Waste | Found Prototype Reactor 749 | -4/Waste | Identified Zero-point Reactor 756 | -4/Waste | Spotted C-40 Crusher 761 | -4/Waste | Spotted C-40 Crusher 762 | -4/Waste | EMP discharged 764 | -4/Waste | Spotted C-40 Crusher 773 | -4/Waste | Spotted C-40 Crusher 777 | -4/Waste | Lost 6 parts (4n1u1w) 785 | -4/Waste | Spotted C-40 Crusher 800 | -4/Waste | Spotted C-40 Crusher 801 | -4/Waste | Discovered new exit (range 13) 807 | -4/Waste | Entered Factory 869 | -4/Factory | Spotted B-86 Titan 892 | -4/Factory | Discovered new exit (range 9) 918 | -4/Factory | Core integrity fell below 50% 946 | -4/Factory | Spotted B-86 Titan 952 | -4/Factory | Core integrity fell below 20% 967 | -4/Factory | Destroyed by H-77 Assassin with Coil Gun Last Messages --------------- 00917_ Assembly Bed disabled. 00919_ Dropped Zero-point Reactor. 00932_ R-10 Processor collects Zero-point Reactor. 00945_ Critical hit (Burn: +50). 00946_ Penetrated by Slug. 00949_ Slug penetrates Fabricator. 00950_ Fabricator disabled. 00951_ System Shield destroyed. 00954_ System corrupted: Component data lost. 00954_ Slug penetrates Wall. 00954_ U-05 Engineer destroyed. 00961_ K-01 Serf collects debris. 00962_ Triggered Alarm Trap. 00962_ An alarm sounds. 00962_ ALERT: Alarm triggered, dispatching investigation squad. 00964_ Penetrated by Slug. 00964_ Hacking Suite destroyed. 00964_ K-01 Serf destroyed. 00965_ Acquired 12 matter. 00967_ Penetrated by Slug. Map ----- +----------------------------------------------------+ | ?????????????????????T#??????############### #?? | | ????????????????????? ????# ?????????# #?? | | ????????????????????? ### ########## #?? | | ????????????????????? +?? | | ?????????????????????????# #?? | | ?????????????????????????# #?? | | ?????????????????????????# " " " " " " #?? | | ??????????????????????????? " " " " " " #?? | | ????????????????????????????? " " " " " #?? | | ????????????????????????????? " " " " " #?? | | ????????????????????????????" " " " " " #?? | | ????????????????????????????" " " " " " #?? | | ?????????????????????????# " " " " " " #?? | | ?????????????????????????# " " " " " " ##? | | ?????????????????????????+ " " " " " " #? | | ?????????????????????????# " F #? | | ?????????????????????????# """"! +? | | ?????????????????????????# |%! #? | | ?????????????????????????# ! #? | | ?????????????????????????################## #? | | ??????????????????????????????????????????# #? | | ?????????????????######????????????####???# #? | | ?????????????????# #############T ##### #? | | ?????????????????# h ## | | ?????????????????# = h A | | ?????????????????# =@ ### | | ?????????????????# ############## #####+##?? | | ?????????????????######?????????????# #????????? | | ????????????????????????????????????# #????????? | | ????????????????????????????????????# #????????? | | ????????????????????????????????????# #????????? | | ??????????????????A?????????A???????+ #????????? | | ????????????????????????????????????# #????????? | | ????????????????????????????????????### #????????? | | ??????????????????????????????????????# #????????? | | ??????????????????????????????????????# #????????? | | ????